[Event "Late-Titled-Tuesday-Blitz-May-07-2024"]
[Site "Chess.com"]
[Date "2024.05.07"]
[Round "8"]
[White "ansko1999"]
[Black "HaryKane"]
[Result "0-1"]
[WhiteElo "2646"]
[BlackElo "2550"]
[TimeControl "180+1"]
[EndTime "15:29:14 PDT"]
[Termination "HaryKane won by resignation"]

1. Nc3 {[%clk 0:03:00.9]} 1... e6 {[%clk 0:02:57.1]} 2. d4 {[%clk 0:02:59.7]}
2... d5 {[%clk 0:02:55.4]} 3. e4 {[%clk 0:02:59.3]} 3... dxe4 {[%clk 0:02:54.2]}
4. Nxe4 {[%clk 0:02:59.3]} 4... Nd7 {[%clk 0:02:54.6]} 5. Bd3 {[%clk 0:02:57.3]}
5... Ngf6 {[%clk 0:02:54.6]} 6. Ne2 {[%clk 0:02:56.9]} 6... Nxe4 {[%clk
0:02:53.3]} 7. Bxe4 {[%clk 0:02:57.8]} 7... c5 {[%clk 0:02:52.8]} 8. O-O {[%clk
0:02:55]} 8... Be7 {[%clk 0:02:47.5]} 9. Re1 {[%clk 0:02:52]} 9... O-O {[%clk
0:02:46.7]} 10. d5 {[%clk 0:02:44.6]} 10... Nf6 {[%clk 0:02:43.7]} 11. d6 {[%clk
0:02:32.3]} 11... Bxd6 {[%clk 0:02:37.8]} 12. Bf3 {[%clk 0:02:30.7]} 12... Qc7
{[%clk 0:02:37.4]} 13. g3 {[%clk 0:02:29.4]} 13... Rd8 {[%clk 0:02:37.9]} 14.
Bd2 {[%clk 0:02:24.3]} 14... e5 {[%clk 0:02:27.6]} 15. Nc3 {[%clk 0:02:20.7]}
15... a6 {[%clk 0:02:17]} 16. Qe2 {[%clk 0:02:14.1]} 16... Bf5 {[%clk
0:02:15.1]} 17. Bg5 {[%clk 0:02:12.7]} 17... Be7 {[%clk 0:01:58.7]} 18. Bxf6
{[%clk 0:02:11.9]} 18... Bxf6 {[%clk 0:01:56]} 19. Nd5 {[%clk 0:02:12.5]} 19...
Qd6 {[%clk 0:01:24.8]} 20. Nxf6+ {[%clk 0:02:08.2]} 20... Qxf6 {[%clk
0:01:24.4]} 21. Bxb7 {[%clk 0:02:05.8]} 21... Rab8 {[%clk 0:01:24.5]} 22. Bxa6
{[%clk 0:01:55.6]} 22... Rxb2 {[%clk 0:01:19.2]} 23. Qxe5 {[%clk 0:01:46.5]}
23... Qxe5 {[%clk 0:01:00.6]} 24. Rxe5 {[%clk 0:01:47.4]} 24... Bxc2 {[%clk
0:00:55.1]} 25. Rxc5 {[%clk 0:01:40.9]} 25... g6 {[%clk 0:00:54.1]} 26. Bc4
{[%clk 0:01:34.3]} 26... Bb1 {[%clk 0:00:38.4]} 27. Rd5 {[%clk 0:01:02.2]} 27...
Rc8 {[%clk 0:00:28.8]} 28. Bb3 {[%clk 0:01:01.1]} 28... Rxb3 {[%clk 0:00:20.4]}
29. axb3 {[%clk 0:00:55.7]} 29... Rc1+ {[%clk 0:00:20.3]} 30. Kg2 {[%clk
0:00:54]} 30... Be4+ {[%clk 0:00:20.7]} 31. f3 {[%clk 0:00:54.6]} 31... Rc2+
{[%clk 0:00:18.7]} 32. Kh3 {[%clk 0:00:48.4]} 32... Bxd5 {[%clk 0:00:18.9]} 33.
Rb1 {[%clk 0:00:40.2]} 33... Bxf3 {[%clk 0:00:18.7]} 34. b4 {[%clk 0:00:40.7]}
34... Bg2+ {[%clk 0:00:18.7]} 35. Kg4 {[%clk 0:00:39.8]} 35... Rc4+ {[%clk
0:00:19.3]} 36. Kg5 {[%clk 0:00:39.6]} 36... Kg7 {[%clk 0:00:20]} 37. g4 {[%clk
0:00:37.9]} 37... Bf3 {[%clk 0:00:17.9]} 38. h3 {[%clk 0:00:37.4]} 38... h5
{[%clk 0:00:15.1]} 39. Kh4 {[%clk 0:00:35.8]} 39... hxg4 {[%clk 0:00:14.6]} 40.
b5 {[%clk 0:00:36.3]} 40... gxh3+ {[%clk 0:00:14.1]} 41. Kg3 {[%clk 0:00:35.7]}
41... Rc3 {[%clk 0:00:12]} 42. Rb2 {[%clk 0:00:33.6]} 42... Be4+ {[%clk
0:00:12]} 43. Kf4 {[%clk 0:00:33.7]} 43... Bb7 {[%clk 0:00:12.1]} 44. Ke5 {[%clk
0:00:33.2]} 44... Bg2 {[%clk 0:00:11.8]} 45. b6 {[%clk 0:00:31.8]} 45... h2
{[%clk 0:00:10.6]} 46. b7 {[%clk 0:00:29.9]} 46... Bxb7 {[%clk 0:00:07]} 47.
Rxh2 {[%clk 0:00:30.8]} 47... Rc5+ {[%clk 0:00:06.1]} 48. Kd6 {[%clk 0:00:30.8]}
48... Rf5 {[%clk 0:00:06.3]} 49. Rb2 {[%clk 0:00:30.3]} 49... Bf3 {[%clk
0:00:06.5]} 50. Ke7 {[%clk 0:00:30.4]} 50... Bh5 {[%clk 0:00:06.9]} 51. Rb6
{[%clk 0:00:25.7]} 51... g5 {[%clk 0:00:07]} 52. Rb5 {[%clk 0:00:25.3]} 52...
Rxb5 {[%clk 0:00:06.9]} 53. Kd6 {[%clk 0:00:25.5]} 53... Rf5 {[%clk 0:00:07.4]}
0-1

[Event "Late-Titled-Tuesday-Blitz-May-07-2024"]
[Site "Chess.com"]
[Date "2024.05.07"]
[Round "8"]
[White "BogdanDeac"]
[Black "moro182"]
[Result "0-1"]
[WhiteElo "3110"]
[BlackElo "2905"]
[TimeControl "180+1"]
[EndTime "15:29:17 PDT"]
[Termination "moro182 won on time"]

1. d4 {[%clk 0:03:00.9]} 1... g6 {[%clk 0:03:00.9]} 2. e4 {[%clk 0:03:00.9]}
2... Bg7 {[%clk 0:03:01.4]} 3. Nf3 {[%clk 0:03:01.6]} 3... d6 {[%clk 0:03:01.8]}
4. Bc4 {[%clk 0:03:02.2]} 4... Nf6 {[%clk 0:03:02]} 5. Qe2 {[%clk 0:03:02.2]}
5... O-O {[%clk 0:03:02.6]} 6. O-O {[%clk 0:03:01.4]} 6... Bg4 {[%clk
0:03:02.9]} 7. c3 {[%clk 0:02:33.1]} 7... Nc6 {[%clk 0:02:59.7]} 8. h3 {[%clk
0:02:31.8]} 8... Bxf3 {[%clk 0:02:56]} 9. Qxf3 {[%clk 0:02:32.7]} 9... e5 {[%clk
0:02:56.5]} 10. d5 {[%clk 0:02:32.4]} 10... Ne7 {[%clk 0:02:54.8]} 11. Bd3
{[%clk 0:02:32]} 11... Qd7 {[%clk 0:02:45.8]} 12. c4 {[%clk 0:02:30.8]} 12...
Nh5 {[%clk 0:02:44.6]} 13. Nc3 {[%clk 0:02:23.6]} 13... f5 {[%clk 0:02:44.3]}
14. Qd1 {[%clk 0:01:34.7]} 14... Nf4 {[%clk 0:02:28.9]} 15. Bxf4 {[%clk
0:01:33.9]} 15... exf4 {[%clk 0:02:29.8]} 16. Qf3 {[%clk 0:01:33.5]} 16... Bxc3
{[%clk 0:02:28]} 17. bxc3 {[%clk 0:01:32.2]} 17... fxe4 {[%clk 0:02:26.5]} 18.
Bxe4 {[%clk 0:01:29.4]} 18... Rae8 {[%clk 0:02:25.9]} 19. Rfe1 {[%clk
0:01:26.3]} 19... Kg7 {[%clk 0:02:12]} 20. Bd3 {[%clk 0:00:36.6]} 20... Ng8
{[%clk 0:02:10.5]} 21. Re6 {[%clk 0:00:31.5]} 21... Rxe6 {[%clk 0:01:43.7]} 22.
dxe6 {[%clk 0:00:31.5]} 22... Qc6 {[%clk 0:01:34.9]} 23. Be4 {[%clk 0:00:31.5]}
23... Qxc4 {[%clk 0:01:35.1]} 24. Bd5 {[%clk 0:00:31.8]} 24... Qc5 {[%clk
0:01:35.7]} 25. Bxb7 {[%clk 0:00:31.6]} 25... Ne7 {[%clk 0:01:34.9]} 26. Ba6
{[%clk 0:00:13]} 26... Qc6 {[%clk 0:01:09.6]} 27. Qd3 {[%clk 0:00:12.7]} 27...
Qd5 {[%clk 0:00:57.5]} 28. Rb1 {[%clk 0:00:09.7]} 28... f3 {[%clk 0:00:41]} 29.
Qxd5 {[%clk 0:00:03.5]} 29... Nxd5 {[%clk 0:00:41.9]} 30. Rb7 {[%clk 0:00:03]}
30... Kf6 {[%clk 0:00:33.7]} 31. Bc4 {[%clk 0:00:02.7]} 31... Nb6 {[%clk
0:00:20.6]} 32. Bb3 {[%clk 0:00:01.1]} 32... c5 {[%clk 0:00:16.3]} 33. Rxa7
{[%clk 0:00:01.6]} 33... c4 {[%clk 0:00:16.8]} 34. Bd1 {[%clk 0:00:02.2]} 34...
fxg2 {[%clk 0:00:16.3]} 35. Rxh7 {[%clk 0:00:02.4]} 35... Nd5 {[%clk 0:00:13.4]}
36. Bg4 {[%clk 0:00:02.9]} 36... Nxc3 {[%clk 0:00:11.5]} 37. Rd7 {[%clk
0:00:03.5]} 37... Ne4 {[%clk 0:00:09.9]} 38. Kxg2 {[%clk 0:00:03.4]} 38... c3
{[%clk 0:00:10.4]} 39. Bd1 {[%clk 0:00:03.1]} 39... Kxe6 {[%clk 0:00:07.9]} 40.
Bg4+ {[%clk 0:00:03.3]} 40... Ke5 {[%clk 0:00:07.1]} 41. Rc7 {[%clk 0:00:01.6]}
41... Nc5 {[%clk 0:00:06.9]} 0-1

[Event "Late-Titled-Tuesday-Blitz-May-07-2024"]
[Site "Chess.com"]
[Date "2024.05.07"]
[Round "8"]
[White "Albertu"]
[Black "Meri-Arabidze"]
[Result "0-1"]
[WhiteElo "2548"]
[BlackElo "2725"]
[TimeControl "180+1"]
[EndTime "15:29:19 PDT"]
[Termination "Meri-Arabidze won on time"]

1. e4 {[%clk 0:03:00.9]} 1... c5 {[%clk 0:03:00.2]} 2. Nf3 {[%clk 0:03:00.2]}
2... e6 {[%clk 0:03:00.8]} 3. d4 {[%clk 0:03:00.4]} 3... cxd4 {[%clk 0:03:01.7]}
4. Nxd4 {[%clk 0:03:00.2]} 4... Nc6 {[%clk 0:03:02.1]} 5. Nc3 {[%clk 0:03:00.6]}
5... a6 {[%clk 0:03:02.4]} 6. g3 {[%clk 0:03:00.3]} 6... Qc7 {[%clk 0:03:01.8]}
7. Bg2 {[%clk 0:03:00.7]} 7... Nf6 {[%clk 0:03:01.1]} 8. O-O {[%clk 0:03:01.2]}
8... Bc5 {[%clk 0:03:01]} 9. Nb3 {[%clk 0:03:00.9]} 9... Ba7 {[%clk 0:03:00]}
10. Nd5 {[%clk 0:02:49.5]} 10... exd5 {[%clk 0:02:55.5]} 11. exd5 {[%clk
0:02:49.6]} 11... O-O {[%clk 0:02:55.6]} 12. dxc6 {[%clk 0:02:48.5]} 12... dxc6
{[%clk 0:02:55.2]} 13. Bf4 {[%clk 0:02:47.9]} 13... Qd7 {[%clk 0:02:40.6]} 14.
Qf3 {[%clk 0:02:27.6]} 14... Qg4 {[%clk 0:02:29.3]} 15. Na5 {[%clk 0:01:49]}
15... Qf5 {[%clk 0:02:16.5]} 16. Nc4 {[%clk 0:01:46]} 16... Qxc2 {[%clk
0:02:09.6]} 17. Rac1 {[%clk 0:01:33.5]} 17... Qg6 {[%clk 0:02:09.4]} 18. Nd6
{[%clk 0:01:15.4]} 18... Bg4 {[%clk 0:02:08.7]} 19. Qb3 {[%clk 0:01:13.5]} 19...
Nd5 {[%clk 0:01:45.6]} 20. Be5 {[%clk 0:00:51.5]} 20... Qh5 {[%clk 0:01:32]} 21.
Rfe1 {[%clk 0:00:48.7]} 21... Be2 {[%clk 0:01:19.6]} 22. Nc4 {[%clk 0:00:08.4]}
22... b5 {[%clk 0:01:13.7]} 23. Na5 {[%clk 0:00:03.2]} 23... Ne7 {[%clk
0:00:28.8]} 24. Bd6 {[%clk 0:00:00.9]} 24... Rfe8 {[%clk 0:00:29.1]} 25. Bxe7
{[%clk 0:00:01.1]} 25... Rxe7 {[%clk 0:00:29.6]} 26. Nxc6 {[%clk 0:00:02]} 26...
Ree8 {[%clk 0:00:25.5]} 27. Nxa7 {[%clk 0:00:02.5]} 27... Rxa7 {[%clk
0:00:26.4]} 28. Qc2 {[%clk 0:00:02.3]} 28... Rae7 {[%clk 0:00:26.1]} 29. Qd2
{[%clk 0:00:02.3]} 29... g6 {[%clk 0:00:19.2]} 30. b3 {[%clk 0:00:01.5]} 30...
Qf5 {[%clk 0:00:11.5]} 31. Rc6 {[%clk 0:00:01.3]} 31... h5 {[%clk 0:00:09.3]}
32. Qc3 {[%clk 0:00:01.4]} 32... Kh7 {[%clk 0:00:05.5]} 33. h3 {[%clk
0:00:01.8]} 33... b4 {[%clk 0:00:04.6]} 34. Qd2 {[%clk 0:00:01.7]} 34... Bb5
{[%clk 0:00:04.9]} 35. Rxe7 {[%clk 0:00:01.2]} 35... Rxe7 {[%clk 0:00:05.8]} 36.
Rd6 {[%clk 0:00:00.5]} 36... Re2 {[%clk 0:00:05.7]} 37. Kh2 {[%clk 0:00:01.4]}
37... Rxd2 {[%clk 0:00:05.8]} 38. Rxd2 {[%clk 0:00:02.2]} 38... Qf6 {[%clk
0:00:06.2]} 39. Rd4 {[%clk 0:00:01.9]} 39... Qxd4 {[%clk 0:00:06.4]} 0-1

[Event "Late-Titled-Tuesday-Blitz-May-07-2024"]
[Site "Chess.com"]
[Date "2024.05.07"]
[Round "8"]
[White "Blackmind96"]
[Black "FairChess_on_YouTube"]
[Result "0-1"]
[WhiteElo "2891"]
[BlackElo "3075"]
[TimeControl "180+1"]
[EndTime "15:29:25 PDT"]
[Termination "FairChess_on_YouTube won by resignation"]

1. d4 {[%clk 0:03:00.9]} 1... Nf6 {[%clk 0:02:58.9]} 2. c4 {[%clk 0:03:00.4]}
2... g6 {[%clk 0:02:57.6]} 3. f3 {[%clk 0:02:59]} 3... Bg7 {[%clk 0:02:53.3]} 4.
e4 {[%clk 0:02:59]} 4... O-O {[%clk 0:02:53.9]} 5. Nc3 {[%clk 0:02:59]} 5... d6
{[%clk 0:02:51.9]} 6. Be3 {[%clk 0:02:58.3]} 6... Nc6 {[%clk 0:02:52]} 7. Qd2
{[%clk 0:02:57.9]} 7... e5 {[%clk 0:02:50.6]} 8. Nge2 {[%clk 0:02:57.7]} 8...
exd4 {[%clk 0:02:45.7]} 9. Nxd4 {[%clk 0:02:58.6]} 9... Re8 {[%clk 0:02:43.9]}
10. Be2 {[%clk 0:02:58.1]} 10... Nh5 {[%clk 0:02:39.5]} 11. O-O {[%clk
0:02:55.8]} 11... Nxd4 {[%clk 0:02:34.5]} 12. Bxd4 {[%clk 0:02:55.4]} 12... Nf4
{[%clk 0:02:35.1]} 13. Kh1 {[%clk 0:02:33.7]} 13... Qg5 {[%clk 0:02:26.1]} 14.
g3 {[%clk 0:02:30.2]} 14... Bxd4 {[%clk 0:02:20.1]} 15. Qxd4 {[%clk 0:02:22.1]}
15... Nxe2 {[%clk 0:02:15.5]} 16. Nxe2 {[%clk 0:02:23]} 16... b6 {[%clk
0:01:56.7]} 17. Nc3 {[%clk 0:02:19.8]} 17... Bb7 {[%clk 0:01:56.6]} 18. Rae1
{[%clk 0:02:19]} 18... Qc5 {[%clk 0:01:53]} 19. Qxc5 {[%clk 0:02:08.9]} 19...
bxc5 {[%clk 0:01:53.9]} 20. Kg2 {[%clk 0:02:09]} 20... Kg7 {[%clk 0:01:47.9]}
21. Re2 {[%clk 0:02:06.5]} 21... Bc6 {[%clk 0:01:46.6]} 22. b3 {[%clk
0:02:05.5]} 22... a5 {[%clk 0:01:41.5]} 23. a4 {[%clk 0:02:05.1]} 23... Rab8
{[%clk 0:01:40]} 24. Rb1 {[%clk 0:02:00]} 24... f5 {[%clk 0:01:32.8]} 25. Kf2
{[%clk 0:01:52.5]} 25... fxe4 {[%clk 0:01:31.1]} 26. fxe4 {[%clk 0:01:53.4]}
26... Re7 {[%clk 0:01:19.7]} 27. Ke3 {[%clk 0:01:52.6]} 27... Rbe8 {[%clk
0:01:17.1]} 28. Kd3 {[%clk 0:01:52.6]} 28... Rf7 {[%clk 0:01:16.4]} 29. Rbe1
{[%clk 0:01:50.7]} 29... Rb8 {[%clk 0:01:14.7]} 30. Kc2 {[%clk 0:01:47]} 30...
Rf3 {[%clk 0:00:55]} 31. e5 {[%clk 0:01:44.9]} 31... dxe5 {[%clk 0:00:53.4]} 32.
Rxe5 {[%clk 0:01:43]} 32... Rd8 {[%clk 0:00:54]} 33. R1e3 {[%clk 0:01:31]} 33...
Rxe3 {[%clk 0:00:36.3]} 34. Rxe3 {[%clk 0:01:31.9]} 34... Kf6 {[%clk 0:00:36.6]}
35. Re2 {[%clk 0:01:20]} 35... h5 {[%clk 0:00:32.7]} 36. Rf2+ {[%clk 0:01:05.1]}
36... Ke6 {[%clk 0:00:29.6]} 37. Rd2 {[%clk 0:00:53.8]} 37... Rd6 {[%clk
0:00:23.2]} 38. Nb5 {[%clk 0:00:51.7]} 38... Be4+ {[%clk 0:00:17.4]} 39. Kc3
{[%clk 0:00:49.6]} 39... Rxd2 {[%clk 0:00:18.3]} 40. Kxd2 {[%clk 0:00:50.2]}
40... c6 {[%clk 0:00:18.8]} 41. Nc3 {[%clk 0:00:49.4]} 41... Kf5 {[%clk
0:00:16.5]} 42. Nd1 {[%clk 0:00:40]} 42... Kg4 {[%clk 0:00:14.5]} 43. Nf2+
{[%clk 0:00:29]} 43... Kf3 {[%clk 0:00:13.9]} 44. Nh3 {[%clk 0:00:29.7]} 44...
Kg2 {[%clk 0:00:11.9]} 45. Nf4+ {[%clk 0:00:29.4]} 45... Kxh2 {[%clk 0:00:11.2]}
46. Ke3 {[%clk 0:00:28.5]} 46... Bc2 {[%clk 0:00:11.1]} 47. Kf2 {[%clk
0:00:28.8]} 47... Bxb3 {[%clk 0:00:10.1]} 48. Nxg6 {[%clk 0:00:29.3]} 48... Bxa4
{[%clk 0:00:10.5]} 49. Ne5 {[%clk 0:00:30]} 49... Bd1 {[%clk 0:00:05.6]} 50. Nd3
{[%clk 0:00:27.5]} 50... a4 {[%clk 0:00:04.6]} 51. Nb2 {[%clk 0:00:27.7]} 51...
a3 {[%clk 0:00:04.3]} 52. Nxd1 {[%clk 0:00:28.1]} 52... a2 {[%clk 0:00:04.8]}
0-1

[Event "Late-Titled-Tuesday-Blitz-May-07-2024"]
[Site "Chess.com"]
[Date "2024.05.07"]
[Round "8"]
[White "CarrotsandPizza"]
[Black "jaramsdal"]
[Result "1-0"]
[WhiteElo "2577"]
[BlackElo "2388"]
[TimeControl "180+1"]
[EndTime "15:29:35 PDT"]
[Termination "CarrotsandPizza won on time"]

1. e4 {[%clk 0:03:00.9]} 1... c5 {[%clk 0:02:56.9]} 2. Nf3 {[%clk 0:03:00.6]}
2... g6 {[%clk 0:02:56.5]} 3. d4 {[%clk 0:03:00.5]} 3... cxd4 {[%clk 0:02:57.4]}
4. Nxd4 {[%clk 0:03:00.7]} 4... Nc6 {[%clk 0:02:57]} 5. Nc3 {[%clk 0:03:00.8]}
5... Bg7 {[%clk 0:02:57.1]} 6. Be3 {[%clk 0:03:01.3]} 6... Nf6 {[%clk
0:02:54.5]} 7. Bc4 {[%clk 0:03:01.4]} 7... O-O {[%clk 0:02:53.8]} 8. Bb3 {[%clk
0:03:01.3]} 8... Qa5 {[%clk 0:02:47.3]} 9. O-O {[%clk 0:02:59.9]} 9... Rd8
{[%clk 0:02:40.8]} 10. f4 {[%clk 0:02:50.7]} 10... d6 {[%clk 0:02:34.6]} 11. h3
{[%clk 0:02:49.2]} 11... Nh5 {[%clk 0:02:22.3]} 12. Nf3 {[%clk 0:02:41.3]} 12...
Ng3 {[%clk 0:02:15]} 13. Re1 {[%clk 0:02:40.4]} 13... Bxc3 {[%clk 0:02:11.3]}
14. bxc3 {[%clk 0:02:41.3]} 14... Nxe4 {[%clk 0:02:11.3]} 15. Qd3 {[%clk
0:02:20.8]} 15... Bf5 {[%clk 0:02:01.2]} 16. g4 {[%clk 0:02:14.1]} 16... Nc5
{[%clk 0:02:01.3]} 17. Qe2 {[%clk 0:02:08]} 17... Be6 {[%clk 0:01:45.9]} 18. Nd4
{[%clk 0:02:05.5]} 18... Bxb3 {[%clk 0:01:39]} 19. axb3 {[%clk 0:02:03.8]} 19...
Qxc3 {[%clk 0:01:29.8]} 20. Nb5 {[%clk 0:01:53.4]} 20... Qf6 {[%clk 0:01:17]}
21. Qf3 {[%clk 0:01:52.8]} 21... a6 {[%clk 0:01:05.3]} 22. Nc7 {[%clk
0:01:52.3]} 22... Rac8 {[%clk 0:01:03.1]} 23. Nd5 {[%clk 0:01:52.4]} 23... Qg7
{[%clk 0:00:59.6]} 24. Nb6 {[%clk 0:01:47]} 24... Rc7 {[%clk 0:00:57.6]} 25.
Rad1 {[%clk 0:01:46.6]} 25... Nb4 {[%clk 0:00:42.5]} 26. c3 {[%clk 0:01:11.7]}
26... Qxc3 {[%clk 0:00:36.7]} 27. Qg2 {[%clk 0:01:00]} 27... Nc2 {[%clk
0:00:31]} 28. Nd5 {[%clk 0:00:57.8]} 28... Nxe1 {[%clk 0:00:26.4]} 29. Qe2
{[%clk 0:00:51.2]} 29... Qxb3 {[%clk 0:00:22]} 30. Nxc7 {[%clk 0:00:48.8]} 30...
Nc2 {[%clk 0:00:18.9]} 31. Bxc5 {[%clk 0:00:44.7]} 31... Qc3 {[%clk 0:00:16.9]}
32. Bf2 {[%clk 0:00:35.7]} 32... Qxc7 {[%clk 0:00:15.6]} 33. Rc1 {[%clk
0:00:36.3]} 33... Rc8 {[%clk 0:00:15.1]} 34. f5 {[%clk 0:00:36.2]} 34... Qc4
{[%clk 0:00:14.9]} 35. Qxe7 {[%clk 0:00:34.9]} 35... Qf4 {[%clk 0:00:12.9]} 36.
Qe2 {[%clk 0:00:32.3]} 36... Qxc1+ {[%clk 0:00:12.2]} 37. Kg2 {[%clk 0:00:32]}
37... Qf4 {[%clk 0:00:11]} 38. Bg3 {[%clk 0:00:30.4]} 38... Qc4 {[%clk
0:00:09.7]} 39. Qe7 {[%clk 0:00:29.2]} 39... Nd4 {[%clk 0:00:07.9]} 40. Bf2
{[%clk 0:00:28.6]} 40... Qe2 {[%clk 0:00:06.5]} 41. f6 {[%clk 0:00:25.5]} 41...
Qxe7 {[%clk 0:00:05.7]} 42. fxe7 {[%clk 0:00:24.9]} 42... Nc6 {[%clk 0:00:05.6]}
43. Bh4 {[%clk 0:00:25]} 43... Kg7 {[%clk 0:00:04.8]} 44. Bg3 {[%clk 0:00:25]}
44... Nxe7 {[%clk 0:00:04.6]} 45. Bxd6 {[%clk 0:00:25.6]} 45... Nd5 {[%clk
0:00:05.4]} 46. Be5+ {[%clk 0:00:26.1]} 46... f6 {[%clk 0:00:05.4]} 47. Bd4
{[%clk 0:00:27]} 47... Rc6 {[%clk 0:00:05.6]} 48. g5 {[%clk 0:00:26.4]} 48... b5
{[%clk 0:00:06.5]} 49. h4 {[%clk 0:00:25.9]} 49... Kf7 {[%clk 0:00:06.5]} 50.
Kf3 {[%clk 0:00:25]} 50... f5 {[%clk 0:00:06.9]} 51. Ke2 {[%clk 0:00:23.6]}
51... Ke6 {[%clk 0:00:07.8]} 52. Kd3 {[%clk 0:00:24.1]} 52... Rc4 {[%clk
0:00:08.6]} 53. Bg7 {[%clk 0:00:23.9]} 53... a5 {[%clk 0:00:09.1]} 54. Kd2
{[%clk 0:00:23.7]} 54... a4 {[%clk 0:00:10]} 55. Bf8 {[%clk 0:00:22.4]} 1-0

[Event "Late-Titled-Tuesday-Blitz-May-07-2024"]
[Site "Chess.com"]
[Date "2024.05.07"]
[Round "8"]
[White "IMRosen"]
[Black "RantomOpening"]
[Result "1-0"]
[WhiteElo "2640"]
[BlackElo "2502"]
[TimeControl "180+1"]
[EndTime "15:29:37 PDT"]
[Termination "IMRosen won by checkmate"]

1. a4 {[%clk 0:03:00.9]} 1... d5 {[%clk 0:02:54.6]} 2. Ra3 {[%clk 0:03:01.8]}
2... e6 {[%clk 0:02:54.3]} 3. g3 {[%clk 0:03:02.4]} 3... Bxa3 {[%clk 0:02:54.1]}
4. Nxa3 {[%clk 0:03:03.3]} 4... Nf6 {[%clk 0:02:54.7]} 5. b3 {[%clk 0:03:03.7]}
5... O-O {[%clk 0:02:55]} 6. Bb2 {[%clk 0:03:02.3]} 6... b6 {[%clk 0:02:54.7]}
7. Bg2 {[%clk 0:03:03]} 7... Bb7 {[%clk 0:02:54.9]} 8. e3 {[%clk 0:03:03.1]}
8... Nbd7 {[%clk 0:02:55.3]} 9. Ne2 {[%clk 0:03:03.5]} 9... c5 {[%clk 0:02:55]}
10. O-O {[%clk 0:03:03.8]} 10... a6 {[%clk 0:02:55.2]} 11. h3 {[%clk 0:03:03.2]}
11... Qc7 {[%clk 0:02:54.1]} 12. g4 {[%clk 0:03:03]} 12... e5 {[%clk 0:02:49.4]}
13. d3 {[%clk 0:02:56.3]} 13... d4 {[%clk 0:02:47.4]} 14. e4 {[%clk 0:02:55.7]}
14... Kh8 {[%clk 0:02:34.8]} 15. Ng3 {[%clk 0:02:54.9]} 15... Ne8 {[%clk
0:02:08.9]} 16. Bc1 {[%clk 0:02:48.1]} 16... Nd6 {[%clk 0:02:05.6]} 17. g5
{[%clk 0:02:40.5]} 17... f5 {[%clk 0:01:53.1]} 18. Nc4 {[%clk 0:02:09.4]} 18...
Nxc4 {[%clk 0:01:51.6]} 19. bxc4 {[%clk 0:02:09.7]} 19... f4 {[%clk 0:01:50.7]}
20. Nf5 {[%clk 0:02:06.2]} 20... Rxf5 {[%clk 0:01:40.6]} 21. exf5 {[%clk
0:02:06.1]} 21... Bxg2 {[%clk 0:01:40.7]} 22. Kxg2 {[%clk 0:02:06.9]} 22... Qc6+
{[%clk 0:01:40.8]} 23. Qf3 {[%clk 0:02:02.6]} 23... Rc8 {[%clk 0:01:25.7]} 24.
Qxc6 {[%clk 0:01:54.1]} 24... Rxc6 {[%clk 0:01:26.6]} 25. Kf3 {[%clk 0:01:54.8]}
25... Rd6 {[%clk 0:01:25.9]} 26. Re1 {[%clk 0:01:48.5]} 26... Kg8 {[%clk
0:01:24.6]} 27. h4 {[%clk 0:01:41.9]} 27... Kf7 {[%clk 0:01:23.8]} 28. Bd2
{[%clk 0:01:40.1]} 28... a5 {[%clk 0:01:03.8]} 29. Ke4 {[%clk 0:01:31.6]} 29...
h5 {[%clk 0:00:57.7]} 30. Rb1 {[%clk 0:01:13.1]} 30... g6 {[%clk 0:00:55.6]} 31.
Rb5 {[%clk 0:01:01.1]} 31... Kg7 {[%clk 0:00:37.8]} 32. Bxa5 {[%clk 0:00:39.5]}
32... bxa5 {[%clk 0:00:38.7]} 33. Rxa5 {[%clk 0:00:40.4]} 33... gxf5+ {[%clk
0:00:33.7]} 34. Kxf5 {[%clk 0:00:40.9]} 34... e4 {[%clk 0:00:19.3]} 35. dxe4
{[%clk 0:00:36.2]} 35... d3 {[%clk 0:00:14]} 36. cxd3 {[%clk 0:00:36.5]} 36...
Rxd3 {[%clk 0:00:14.9]} 37. Ra7 {[%clk 0:00:37]} 37... f3 {[%clk 0:00:06.7]} 38.
e5 {[%clk 0:00:35.7]} 38... Kf8 {[%clk 0:00:06.8]} 39. e6 {[%clk 0:00:31.3]}
39... Nb6 {[%clk 0:00:04.5]} 40. Kf6 {[%clk 0:00:16.5]} 40... Rd4 {[%clk
0:00:04.9]} 41. Rb7 {[%clk 0:00:12.4]} 41... Nc8 {[%clk 0:00:05]} 42. Rh7 {[%clk
0:00:11.7]} 42... Rf4+ {[%clk 0:00:04.2]} 43. Ke5 {[%clk 0:00:12.2]} 43... Rxc4
{[%clk 0:00:04.1]} 44. Rh8+ {[%clk 0:00:12.7]} 44... Ke7 {[%clk 0:00:04.6]} 45.
Rxc8 {[%clk 0:00:12.9]} 45... Rc2 {[%clk 0:00:05.2]} 46. Rc7+ {[%clk 0:00:13.1]}
46... Kd8 {[%clk 0:00:05.7]} 47. Rd7+ {[%clk 0:00:12.9]} 47... Ke8 {[%clk
0:00:05.3]} 48. g6 {[%clk 0:00:08.6]} 48... Re2+ {[%clk 0:00:05]} 49. Kf6 {[%clk
0:00:08]} 49... Rxf2 {[%clk 0:00:04.7]} 50. Rc7 {[%clk 0:00:08]} 50... Rg2
{[%clk 0:00:05.6]} 51. Rc8# {[%clk 0:00:08.4]} 1-0